Cogmind - Beta 10.1 @@@ ROGUE MODE // 2020.10.25 @ 01:19:49 Player: W_W Result: Destroyed by G-34 Mercenary with Small Laser Performance ------------- Evolutions (0) 0 Regions Visited (2) 400 Robots Destroyed (55) 275 Value Destroyed (1095) 1095 Prototype IDs (2) 40 Alien Tech Used (0) 0 Bonus (0) 0 TOTAL SCORE: 1810 Bonus ------- None Cogmind --------- Core Integrity 0/250 Matter 280/300 Energy 263/265 System Corruption 8% Temperature Cool (6) Movement Treading (200) Ox2 Location -10/Mines Parts ------- > --- POWER (1) -------- Improved Ion Engine > --- PROPULSION (2) --- Light Treads Aluminum Leg > --- UTILITY (2) ------ Large Storage Unit High-capacity Storage Unit > --- WEAPON (2) ------- Assault Rifle Assault Rifle > --- INVENTORY (18) --- Ion Engine Improved Ion Engine Improved Heat Sink Large Matter Pod (150) Sensor Array ECM Suite Propulsion Shielding Light Armor Plating Light Armor Plating EM Pulse Gun Beam Rifle Grenade Launcher Mini Grenade Launcher Mini Grenade Launcher Mini Grenade Launcher Mini Grenade Launcher Datajack Mining Laser Peak State ------------ > --- POWER ------------ Light Ion Engine > --- PROPULSION ------- Light Treads Light Treads > --- UTILITY ---------- Large Storage Unit High-capacity Storage Unit > --- WEAPON ----------- Particle Gun Assault Rifle > --- INVENTORY -------- Ion Engine Light Ion Engine Improved Heat Sink Large Matter Pod ECM Suite Beam Cannon Assault Rifle Assault Rifle Mini Grenade Launcher Mini Grenade Launcher Mini Grenade Launcher Mini Grenade Launcher Datajack Mining Laser [Rating: 10] Favorites ----------- Power Ion Engine Engine Ion Engine Propulsion Light Treads Treads Light Treads Leg Aluminum Leg Utility Large Storage Unit Storage Large Storage Unit Weapon Assault Rifle Energy Gun Particle Gun Energy Cannon Beam Cannon Ballistic Gun Assault Rifle Launcher Mini Grenade Launcher Build | -11 -10 -10 ------- Run | Scr Mat Min Slots Evolved . | . . . Power . | . . . Propulsion . | . . . Utility . | . . . Weapon . | . . . Parts Attached 23 | 7 13 3 Power 4 | 1 2 1 Engine 4 | 1 2 1 Core . | . . . Reactor . | . . . Propulsion 4 | 2 1 1 Treads 3 | 2 . 1 Leg 1 | . 1 . Wheel . | . . . Hover . | . . . Flight . | . . . Utility 7 | 2 5 . Device . | . . . Storage 7 | 2 5 . Processor . | . . . Hackware . | . . . Protection . | . . . Artifact . | . . . Weapon 8 | 2 5 1 Energy Gun 1 | . 1 . Energy Cannon 1 | . 1 . Ballistic Gun 5 | 2 2 1 Ballistic Cannon . | . . . Launcher 1 | . 1 . Special Weapon . | . . . Impact Weapon . | . . . Slashing Weapon . | . . . Piercing Weapon . | . . . Special Melee Weapon . | . . . Unidentified Prototypes . | . . . Parts Lost 6 | . 5 1 Power 1 | . 1 . Propulsion 2 | . 2 . Utility . | . . . Weapon 3 | . 2 1 Highest Loss Streak 3 | . 3 1 Average Slot Usage (%) 81 | . 81 79 Engine 8 | . 9 5 Treads 12 | . 14 3 Leg 4 | . 2 14 Storage 28 | . 28 28 Energy Gun 1 | . 1 . Energy Cannon 5 | . 4 7 Ballistic Gun 17 | . 16 20 Launcher 2 | . 3 . Naked Turns . | . . . Heaviest Build 59 | 17 58 59 Greatest Support 40 | 40 40 20 Greatest Overweight (x) 18 | . 18 5 Average Overweight (x) 1 | . 2 4 Largest Inventory Capacity 18 | 8 18 18 Average Capacity 14 | 7 16 18 Most Carried 18 | 8 16 18 Average Carried 12 | 6 13 16 Final Capacity 18 | 8 18 18 Final Carried 18 | 8 16 18 Class Distribution -------------------- 100% | Mutant Dominant Class ---------------- Mutant | -10/Materials Mutant | -10/Mines Resources | -11 -10 -10 ----------- Run | Scr Mat Min Matter Collected 1466 | 616 662 188 Remotely . | . . . Salvage Created 1816 | 382 1051 383 Parts 105 | 25 64 16 Haulers Intercepted . | . . . Recyclers Shooed 5 | . 5 . Parts Field Recycled . | . . . Retrieved Matter . | . . . Parts Self-Destructed . | . . . Prevented . | . . . Kills | -11 -10 -10 ------- Run | Scr Mat Min Combat Hostiles Destroyed 28 | . 24 4 Guns 16 | . 12 4 Cannons 2 | . 2 . AOE 10 | . 10 . Classes Destroyed 8 | 3 4 1 Worker 5 | 4 1 . Tunneler 10 | 9 . 1 Recycler 7 | 1 4 2 Operator 2 | . 2 . Watcher 3 | . 3 . Swarmer 7 | . 6 1 Grunt 19 | . 18 1 Sentry 2 | . . 2 Best Kill Streak 7 | 3 7 3 Combat Bots Only 7 | . 7 2 Max Kills in Single Turn 2 | 2 2 1 Gunslinging . | . . . Exploded 2 | . 2 . Melee . | . . . Uniques/NPCs Destroyed . | . . . Combat | -11 -10 -10 -------- Run | Scr Mat Min Damage Taken 1362 | . 1053 309 Core 256 | . 194 62 Absorbed by Shields . | . . . Core Remaining (%) 100 | 100 . . Volleys Fired 157 | 44 87 26 Largest 2 | 2 2 2 Hottest 85 | 40 85 40 Shots Fired 293 | 88 154 51 Gun 259 | 88 121 50 Cannon 23 | . 22 1 Launcher 11 | . 11 . Special . | . . . Kinetic 241 | 88 103 50 Thermal 41 | . 40 1 Explosive 11 | . 11 . Electromagnetic . | . . . Robot Hit Streak 11 | 10 11 10 Robot Miss Streak 5 | 5 5 3 Penetration Max . | . . . Secondary Targets 3 | . 3 . Max Gunslinging Chain 1 | . 1 . Shots Hit Robots 156 | 43 82 31 Core Hits 86 | 15 57 14 Critical Hits 1 | . 1 . Critical Kills . | . . . Critical Parts Destroyed 1 | . 1 . Melee Attacks . | . . . Impact . | . . . Slashing . | . . . Piercing . | . . . Sneak Attacks . | . . . Combat Hostiles . | . . . Follow-up Attacks . | . . . Damage Inflicted 2916 | 538 1978 400 Guns 1752 | 538 814 400 Cannons 227 | . 227 . Explosions 937 | . 937 . Melee . | . . . Ramming . | . . . Kinetic 1608 | 538 670 400 Thermal 371 | . 371 . Explosive 937 | . 937 . Electromagnetic . | . . . Impact . | . . . Slashing . | . . . Piercing . | . . . Highest Corruption 8 | . 8 8 Average Corruption 7 | . 7 8 Corruption Purged . | . . . Effects 97 | . 73 24 Message Errors 18 | . 14 4 Matter Fused 15 | . 11 4 Heat Flow Errors 10 | . 7 3 Energy Discharges 9 | . 7 2 Data Loss (minor) 10 | . 9 1 Data Loss (major) 3 | . 2 1 Misfires 6 | . 5 1 Targeting Errors 21 | . 15 6 Weapon Failures 5 | . 3 2 Overload Shots . | . . . Overflow Damage 18 | . 18 . Projectiles . | . . . Explosions 18 | . 18 . Melee . | . . . Knockbacks . | . . . Impact . | . . . Kinetic . | . . . Secondary . | . . . Self-Inflicted Damage 10 | . 10 . Shots 1 | . 1 . Rammed . | . . . Targets Rammed . | . . . Kicked . | . . . Crushed . | . . . Highest Temperature 275 | 6 275 237 Average Temperature 88 | 6 87 98 Received Heat Transfer 567 | . 429 138 Effects 2 | . . 2 Interference 2 | . . 2 Siege Activations . | . . . Robots Corrupted . | . . . Combat Hostiles . | . . . Parts Fried . | . . . Impact Corruptions . | . . . Robots Melted . | . . . Combat Hostiles . | . . . Parts Melted . | . . . Heat Transferred 814 | . 814 . Parts Sabotaged . | . . . Parts Stolen . | . . . Parts Stripped . | . . . Power Chain Reactions . | . . . Missiles Intercepted . | . . . Alert | -11 -10 -10 ------- Run | Scr Mat Min Peak Influence 316 | 45 316 84 Initial 34 | . . 34 Average 89 | 18 129 39 Maximum Alert Level 1 | . 1 . Low Security (%) 91 | 100 85 100 Level 1 8 | . 14 . Level 2 . | . . . Level 3 . | . . . Level 4 . | . . . Level 5 . | . . . High Security . | . . . Max Security . | . . . Squads Dispatched 4 | . 4 . Investigation 2 | . 2 . Extermination . | . . . Reinforcement 2 | . 2 . Assault . | . . . Garrison . | . . . Intercept . | . . . Construction Impeded . | . . . Haulers Reinforced . | . . . Stealth | -11 -10 -10 --------- Run | Scr Mat Min Distress Signals 3 | . 3 . Communications Jammed . | . . . Distress Signals . | . . . Times Spotted 37 | . 32 5 Peak Tracking Total 5 | . 5 3 Tactical Retreats . | . . . Traps | -11 -10 -10 ------- Run | Scr Mat Min Traps Triggered 5 | . 5 . Indirectly . | . . . Trap Hack Attempts . | . . . Triggered . | . . . Disarmed . | . . . Reprogrammed . | . . . Reused . | . . . Traps Extracted . | . . . Installed . | . . . Triggered . | . . . Machines | -11 -10 -10 ---------- Run | Scr Mat Min Machines Disabled 4 | . 4 . Max in Single Turn 1 | . 1 . Machines Sabotaged . | . . . Garrisons Compromised . | . . . Overloaded Fab Kills . | . . . Fab Network Shutdowns . | . . . Hacking | -11 -10 -10 --------- Run | Scr Mat Min Machines Accessed 8 | . 8 . Terminals 6 | . 6 . Fabricators . | . . . Repair Stations . | . . . Recycling Units 2 | . 2 . Scanalyzers . | . . . Garrison Access . | . . . Total Hacks 27 | . 27 . Successful 17 | . 17 . Failed 10 | . 10 . Catastrophic 1 | . 1 . Database Lockouts . | . . . Manual . | . . . Terminals 22 | . 22 . Fabricators . | . . . Repair Stations . | . . . Recycling Units 5 | . 5 . Scanalyzers . | . . . Garrison Access . | . . . Terminal Hacks 12 | . 12 . Record 2 | . 2 . Prototype ID Bank 1 | . 1 . Terminal Index 1 | . 1 . Scanalyzer Index 1 | . 1 . Alert Level 2 | . 2 . Locate Traps 1 | . 1 . Dispatch Records 1 | . 1 . Security Status 1 | . 1 . Transport Status 1 | . 1 . Hauler Manifests 1 | . 1 . Fabricator Hacks . | . . . Repair Station Hacks . | . . . Recycling Unit Hacks 5 | . 5 . Process 1 | . 1 . Report Inventory 2 | . 2 . Retrieve Matter 1 | . 1 . Retrieve Components 1 | . 1 . Scanalyzer . | . . . Garrison Access Hacks . | . . . Unauthorized Hacks . | . . . Terminals . | . . . Fabricators . | . . . Repair Stations . | . . . Recycling Units . | . . . Scanalyzers . | . . . Garrison Access . | . . . Data Cores Recovered . | . . . Used . | . . . Hacking Detections 8 | . 8 . Full Trace Events 2 | . 2 . Feedback Events . | . . . Feedback Blocked . | . . . Robot Schematics Acquired . | . . . Robots Built . | . . . Matter . | . . . Time . | . . . Total Robot Build Rating . | . . . Part Schematics Acquired . | . . . Parts Built . | . . . Matter . | . . . Time . | . . . Total Part Build Rating . | . . . Parts Repaired . | . . . Time . | . . . Parts Recycled . | . . . Recycled Matter 308 | . 308 . Retrieved Matter 308 | . 308 . Retrieved Components 10 | . 10 . Parts Scanalyzed . | . . . Part Schematics Acquired . | . . . Parts Damaged . | . . . Bothacking | -11 -10 -10 ------------ Run | Scr Mat Min Used RIF Installer . | . . . Robots Hacked . | . . . Non-combat . | . . . Combat . | . . . Robot Hacks Applied . | . . . Relay Couplers Released . | . . . Robots Rewired . | . . . Allies Hacked . | . . . Hacks Repelled . | . . . Allies | -11 -10 -10 -------- Run | Scr Mat Min Total Allies . | . . . Largest Group . | . . . Highest-Rated Group . | . . . Highest-Rated Ally . | . . . Total Orders . | . . . Ally Attacks . | . . . Total Damage . | . . . Kills . | . . . Allies Corrupted . | . . . Allies Melted . | . . . Intel | -11 -10 -10 ------- Run | Scr Mat Min Robot Analysis Total . | . . . Derelict Logs Recovered . | . . . Drone Launches . | . . . Drone Recoveries . | . . . Exploration | -11 -10 -10 ------------- Run | Scr Mat Min Turns Passed 3836 | 925 2375 536 Spaces Moved 1463 | 471 822 170 Core 74 | 3 71 . Treads 1125 | 468 620 37 Legs 264 | . 131 133 Wheels . | . . . Hover . | . . . Flight . | . . . Fastest Speed 50 | 50 160 200 Average Speed 220 | 159 248 254 Slowest Speed 950 | 160 950 270 Overloaded Moves . | . . . Propulsion Burnouts . | . . . Robots Hopped . | . . . Cave-ins Triggered . | . . . Exploration Rate (%) 59 | 23 97 57 Regions Visited 2 Branch Regions 1 Pre-discovered Areas . | . . . Known Exits Taken . | . . . Unknown Exits Taken 2 | 1 1 . Scrap Searched 1 | . . 1 Spaces Dug . | . . . Terrain Destroyed 82 | . 82 . Melee . | . . . Projectile . | . . . AOE 82 | . 82 . Terrain Rammed . | . . . Walls Destroyed . | . . . Machines Disabled . | . . . Actions | -11 -10 -10 --------- Run | Scr Mat Min Total 1785 | 554 1006 225 Wait 96 | 25 56 15 Move 1461 | 470 821 170 Hop . | . . . Pick Up 31 | 8 16 7 Fast Attach 12 | 7 3 2 Attach 3 | . 2 1 Detach . | . . . Swap 8 | . 8 . Drop 17 | . 13 4 Fire 157 | 44 87 26 Melee . | . . . Ram . | . . . Kick . | . . . Crush . | . . . Escape Stasis . | . . . Rewire . | . . . Trap . | . . . Miscellaneous . | . . . Route ------- -11/Scrapyard -10/Materials (discovered 4 exits: [*Mat x3] / [*Min]) -10/Mines (discovered 1 exit: [*Mat]) History --------- Turn | Location | Event 4 | -11/Scrapyard | Discovered new exit (range 15) 926 | -11/Scrapyard | Entered Materials 927 | -10/Materials | Build established: Mutant 1027 | -10/Materials | Discovered new exit (range 16) 1173 | -10/Materials | Destroyed 7 combat bots 1475 | -10/Materials | Discovered new exit (range 5) 1860 | -10/Materials | Discovered new exit (range 16) 2223 | -10/Materials | Lost 3 parts (2n1w) 2556 | -10/Materials | Core integrity fell below 50% 2866 | -10/Materials | Discovered new exit (range 8) 3301 | -10/Materials | Entered Mines 3303 | -10/Mines | Met a Derelict bent on vengeance 3339 | -10/Mines | Discovered new exit (range 11) 3583 | -10/Mines | Core integrity fell below 20% 3837 | -10/Mines | Destroyed by G-34 Mercenary with Small Laser Last Messages --------------- 03814_ Acquired 6 matter. 03816_ System corrupted: Assault Rifle targeting data glitched. 03816_ T-07 Excavator destroyed. 03817_ Acquired 6 matter. 03817_ R-06 Scavenger collects Particle Gun. 03820_ Acquired 6 matter. 03822_ U-05 Engineer lays Concrete. 03822_ System corrupted: Assault Rifle jammed. 03822_ System corrupted: Assault Rifle targeting data glitched. 03822_ R-06 Scavenger collects Aluminum Leg. 03823_ Acquired 3 matter. 03825_ R-06 Scavenger collects Flight Unit. 03826_ Acquired 6 matter. 03828_ System corrupted: Assault Rifle targeting data glitched. 03828_ K-01 Serf collects debris. 03829_ Acquired 6 matter. 03834_ K-01 Serf collects debris. 03834_ R-06 Scavenger collects Seismic Analyzer. 03835_ System corrupted: Matter fused (-10). 03835_ Acquired 2 matter. Map ----- +----------------------------------------------------+ | ?????????????????????????????????????????????? | | ?????????????????????????????????????????????? | | ?????????????????????????????????????????????? | | ?????????????????????????????????????????????? | | ??????????????####################???????????? | | ??????????????# !! ## ##???####???? | | ??????????????# %% #??## ###?? | | ??????????????# ######## #### ##? | | ????########### ######## ## ## | | ????# ## #### # | | ????# #####??######## | | ????# #?????????????# | | ?#### #######??????## | | ##![## + ##????## | | #"[ [# ! + ##??## | | # + % ### #??# | | # [+% * #?# #??# | | #"![!# !%! #?# #??## #### | | ##! ## #?## ###???## #??? | | ?#### #??####??????# #??? | | ????################# ###???????????## #??? | | ????????????????????#u#?####???????## ##??? | | ????????????????????# ### ######## ###???? | | ????????????????????# ## ## ## ##?????? | | ??????????????####### # |g ##??????? | | ??????????????# @ k= #???????? | | ??????????????# r ! ##???????? | | ??????????????# #### ####????????? | | ??????????????# ????## ## ##???????????? | | ??????????????????????##### ##???????????? | | ??????????????????????????# % #???????????? | | ?????????????????????????## #???????????? | | ??????????????????????#### ##????####??? | | ?????????????????????## ##??## ##?? | | ?????????????????????# ##?# ##? | | ?????????????????????# ### ## | | ?????????????????????## | | ??????????????????????####### | | ????????????????????????????## #### | | ?????????????????????????????## ##??# | | ??????????????????????????????# #??## | | ??????????????????????????????# #?## | | ??????????????????????????????# #?# | | ??????????????????????????????# #?# | | ??????????????????????????????# ### | | ??????????????????????????????# ## < | | ????????????????????????????### # # | | ???????????????????????????## ## | | ??????????????????????????## #? | | ??????????????????????????# ### #? | +----------------------------------------------------+ Best States ------------- Heat Dissipation 25 Energy Generation 12 Energy Capacity 265 Matter Stores 300 Matter Capacity 300 Sight Range 16 Terrain Scan Density 10 Evasion (%) 40 Recoil Reduction 2 Item Schematics ----------------- None Robot Schematics ------------------ None Fabricated ------------ Nothing Alien Tech Used ----------------- None Achievements -------------- None Challenges ------------ None Game ------ Seed DimensionalHelicalPerforator Manual? 0 Play Time 00:22:59 Cumulative 43.7 hours Start 2020.10.25 @ 00:59:51 End 2020.10.25 @ 01:19:49 Sessions 1 Manual Loads 0 Difficulty Rogue Special Mode None Game No. 46 Rogue 46 Adventurer 0 Explorer 0 Win Type - Total 0 Types 0/0/0/0/0/0/0/0/0 Lore% 26 Gallery% 26 Achievement% 23 Wizard Run 0 Options --------- ASCII 0 Keyboard 0 Movement Mouse Keybinds 0 Fullscreen 1 Font 18/SmallcapsGlow Map View 76x50 Tactical HUD 1 Map Filters NONE Filters NONE Steam 1 RUN: 679645c7-7308-4ef0-85cc-3b5555e718f3